[Event "*** Titled Tuesday Blitz"]
[Site "Chess.com"]
[Date "2019.10.01"]
[Round "5"]
[White "biostatistician"]
[Black "NiranjanNavalgund"]
[Result "0-1"]
[WhiteElo "2574"]
[BlackElo "2433"]
[TimeControl "180+2"]
[EndTime "14:11:14 PDT"]
[Termination "NiranjanNavalgund won on time"]

1. d4 {[%clk 0:03:01.8]} 1... Nf6 {[%clk 0:03:00.5]} 2. Nf3 {[%clk 0:03:03.7]}
2... e6 {[%clk 0:03:01.8]} 3. c4 {[%clk 0:03:05.2]} 3... d5 {[%clk 0:03:02.9]}
4. Bg5 {[%clk 0:03:05.1]} 4... Bb4+ {[%clk 0:03:02.1]} 5. Nc3 {[%clk 0:03:06]}
5... h6 {[%clk 0:03:00.2]} 6. Bxf6 {[%clk 0:03:06.1]} 6... Qxf6 {[%clk
0:03:02.1]} 7. e3 {[%clk 0:03:07.6]} 7... O-O {[%clk 0:03:02.3]} 8. Bd3 {[%clk
0:03:06.2]} 8... dxc4 {[%clk 0:03:03.1]} 9. Bxc4 {[%clk 0:03:08.1]} 9... c5
{[%clk 0:03:03.9]} 10. O-O {[%clk 0:03:09.6]} 10... cxd4 {[%clk 0:03:04.6]} 11.
exd4 {[%clk 0:03:11.2]} 11... b6 {[%clk 0:03:04.1]} 12. Qe2 {[%clk 0:03:10.4]}
12... Bb7 {[%clk 0:03:04.8]} 13. Ne4 {[%clk 0:03:11.5]} 13... Qe7 {[%clk
0:03:02.4]} 14. Rad1 {[%clk 0:03:07.4]} 14... Nc6 {[%clk 0:03:00.5]} 15. a3
{[%clk 0:02:56.2]} 15... Bd6 {[%clk 0:03:01.3]} 16. Rfe1 {[%clk 0:02:53.9]}
16... Rad8 {[%clk 0:03:00.5]} 17. Bd3 {[%clk 0:02:50.9]} 17... Bb8 {[%clk
0:02:54.4]} 18. Bb1 {[%clk 0:02:49.2]} 18... Qc7 {[%clk 0:02:49.5]} 19. Qd3
{[%clk 0:02:40.8]} 19... f5 {[%clk 0:02:37.7]} 20. Ng3 {[%clk 0:02:41.2]} 20...
Rfe8 {[%clk 0:02:21.3]} 21. Ba2 {[%clk 0:02:41.6]} 21... Kh8 {[%clk 0:02:01.3]}
22. Bxe6 {[%clk 0:02:38.1]} 22... f4 {[%clk 0:02:01.6]} 23. Nh5 {[%clk
0:02:27.6]} 23... Rxe6 {[%clk 0:01:42.7]} 24. Rxe6 {[%clk 0:02:28.3]} 24... Qf7
{[%clk 0:01:44.6]} 25. Qg6 {[%clk 0:02:22.2]} 25... Qxg6 {[%clk 0:01:36.3]} 26.
Rxg6 {[%clk 0:02:24.1]} 26... Rd7 {[%clk 0:01:33.9]} 27. Re6 {[%clk 0:02:05.6]}
27... Kh7 {[%clk 0:01:24.9]} 28. b4 {[%clk 0:01:47.6]} 28... Nd8 {[%clk
0:01:14.9]} 29. Re8 {[%clk 0:01:45.2]} 29... Kg6 {[%clk 0:01:07.7]} 30. Ne5+
{[%clk 0:01:38.2]} 30... Bxe5 {[%clk 0:01:06.8]} 31. Rxe5 {[%clk 0:01:40.1]}
31... f3 {[%clk 0:01:02.4]} 32. g4 {[%clk 0:01:34.6]} 32... Nf7 {[%clk
0:01:01.5]} 33. Nf4+ {[%clk 0:01:27.4]} 33... Kh7 {[%clk 0:00:59.9]} 0-1

[Event "*** Titled Tuesday Blitz"]
[Site "Chess.com"]
[Date "2019.10.01"]
[Round "5"]
[White "LazarusChess92"]
[Black "ShadowJolteon"]
[Result "1/2-1/2"]
[WhiteElo "2531"]
[BlackElo "2357"]
[TimeControl "180+2"]
[EndTime "14:11:20 PDT"]
[Termination "Game drawn by repetition"]

1. d4 {[%clk 0:03:01.9]} 1... Nf6 {[%clk 0:02:52.5]} 2. c4 {[%clk 0:03:02.6]}
2... e6 {[%clk 0:02:54.4]} 3. Nf3 {[%clk 0:03:03.3]} 3... b6 {[%clk 0:02:54.6]}
4. g3 {[%clk 0:03:04.2]} 4... Bb7 {[%clk 0:02:55.2]} 5. Bg2 {[%clk 0:03:05.3]}
5... Be7 {[%clk 0:02:55.2]} 6. O-O {[%clk 0:03:06.5]} 6... O-O {[%clk
0:02:57.1]} 7. d5 {[%clk 0:03:05.1]} 7... exd5 {[%clk 0:02:57.8]} 8. Nh4 {[%clk
0:03:06]} 8... c6 {[%clk 0:02:58.8]} 9. cxd5 {[%clk 0:03:02.2]} 9... Nxd5 {[%clk
0:02:58.2]} 10. Nf5 {[%clk 0:03:03.4]} 10... Bf6 {[%clk 0:02:32.3]} 11. e4
{[%clk 0:03:04.2]} 11... Nc7 {[%clk 0:02:30.9]} 12. Nd6 {[%clk 0:02:54.9]} 12...
Ba6 {[%clk 0:02:29.7]} 13. Re1 {[%clk 0:02:55.3]} 13... Ne8 {[%clk 0:02:29.7]}
14. e5 {[%clk 0:02:46.3]} 14... Nxd6 {[%clk 0:02:25.9]} 15. exf6 {[%clk
0:02:30.3]} 15... Qxf6 {[%clk 0:02:26.1]} 16. Nc3 {[%clk 0:02:31.4]} 16... Nb7
{[%clk 0:02:09.3]} 17. Ne4 {[%clk 0:02:21.3]} 17... Qg6 {[%clk 0:02:08.1]} 18.
h4 {[%clk 0:02:11.7]} 18... d5 {[%clk 0:02:08.9]} 19. h5 {[%clk 0:02:10.6]}
19... Qf5 {[%clk 0:02:06.4]} 20. h6 {[%clk 0:01:23.8]} 20... dxe4 {[%clk
0:01:30.9]} 21. Bxe4 {[%clk 0:01:15.2]} 21... Qd7 {[%clk 0:01:31.9]} 22. Qc2
{[%clk 0:01:07]} 22... f5 {[%clk 0:01:30.6]} 23. Bf3 {[%clk 0:00:42.7]} 23...
Bd3 {[%clk 0:01:11.8]} 24. Qb3+ {[%clk 0:00:38]} 24... Rf7 {[%clk 0:01:12.2]}
25. Bf4 {[%clk 0:00:26.1]} 25... Nc5 {[%clk 0:01:11.6]} 26. Qc3 {[%clk 0:00:23]}
26... Ne4 {[%clk 0:01:09.2]} 27. Bxe4 {[%clk 0:00:17.3]} 27... fxe4 {[%clk
0:01:11.1]} 28. Rad1 {[%clk 0:00:14]} 28... Rxf4 {[%clk 0:00:38.2]} 29. gxf4
{[%clk 0:00:14.7]} 29... Qg4+ {[%clk 0:00:38.9]} 30. Kh1 {[%clk 0:00:15.8]}
30... Qh3+ {[%clk 0:00:40.2]} 31. Kg1 {[%clk 0:00:16.9]} 31... Qg4+ {[%clk
0:00:41.6]} 32. Kh1 {[%clk 0:00:18]} 32... Qf3+ {[%clk 0:00:40.9]} 33. Kg1
{[%clk 0:00:18.2]} 33... Qg4+ {[%clk 0:00:25.6]} 1/2-1/2

[Event "*** Titled Tuesday Blitz"]
[Site "Chess.com"]
[Date "2019.10.01"]
[Round "5"]
[White "TheLancer"]
[Black "TrenerChos"]
[Result "1-0"]
[WhiteElo "2564"]
[BlackElo "2408"]
[TimeControl "180+2"]
[EndTime "14:11:22 PDT"]
[Termination "TheLancer won by checkmate"]

1. e4 {[%clk 0:03:01.9]} 1... d5 {[%clk 0:02:59.8]} 2. exd5 {[%clk 0:03:02.5]}
2... Nf6 {[%clk 0:03:00]} 3. d4 {[%clk 0:03:01]} 3... Qxd5 {[%clk 0:03:00]} 4.
c4 {[%clk 0:02:53]} 4... Qe4+ {[%clk 0:03:00.7]} 5. Ne2 {[%clk 0:02:46.1]} 5...
e5 {[%clk 0:02:48.9]} 6. Nc3 {[%clk 0:02:43.8]} 6... Bb4 {[%clk 0:02:48.7]} 7.
Bd2 {[%clk 0:02:29.3]} 7... Bxc3 {[%clk 0:02:47.8]} 8. Bxc3 {[%clk 0:02:31.2]}
8... Nc6 {[%clk 0:02:46.6]} 9. dxe5 {[%clk 0:02:24.3]} 9... Nxe5 {[%clk
0:02:42.1]} 10. Qd4 {[%clk 0:02:13.6]} 10... Nd3+ {[%clk 0:02:35]} 11. Kd2
{[%clk 0:02:13.4]} 11... Bf5 {[%clk 0:02:35.6]} 12. f3 {[%clk 0:01:49.3]} 12...
Qe7 {[%clk 0:02:28.5]} 13. Ng3 {[%clk 0:01:42.5]} 13... Bg6 {[%clk 0:02:02.4]}
14. Bxd3 {[%clk 0:01:40.9]} 14... Rd8 {[%clk 0:02:03.1]} 15. Rae1 {[%clk
0:01:33.7]} 15... Ne4+ {[%clk 0:01:55.9]} 16. Rxe4 {[%clk 0:01:20.1]} 16... Bxe4
{[%clk 0:01:55.2]} 17. Qxe4 {[%clk 0:01:16.4]} 17... Qxe4 {[%clk 0:01:55.2]} 18.
Nxe4 {[%clk 0:01:16.3]} 18... O-O {[%clk 0:01:55.8]} 19. Kc2 {[%clk 0:01:13.7]}
19... b6 {[%clk 0:01:56.3]} 20. c5 {[%clk 0:01:10]} 20... Rd5 {[%clk 0:01:53.7]}
21. Bc4 {[%clk 0:01:07.2]} 21... Rdd8 {[%clk 0:01:51.1]} 22. b4 {[%clk
0:00:56.1]} 22... h6 {[%clk 0:01:49.9]} 23. Be5 {[%clk 0:00:50.2]} 23... Rd7
{[%clk 0:01:46]} 24. Rd1 {[%clk 0:00:48.7]} 24... Re7 {[%clk 0:01:43.3]} 25. Bg3
{[%clk 0:00:46.2]} 25... Kh8 {[%clk 0:01:43.4]} 26. c6 {[%clk 0:00:39.8]} 26...
f5 {[%clk 0:01:43.9]} 27. Nc3 {[%clk 0:00:41.3]} 27... f4 {[%clk 0:01:41.5]} 28.
Bf2 {[%clk 0:00:33.9]} 28... Re5 {[%clk 0:01:24.5]} 29. Rd7 {[%clk 0:00:31]}
29... Rg5 {[%clk 0:01:25.4]} 30. g4 {[%clk 0:00:30.7]} 30... fxg3 {[%clk
0:01:25.9]} 31. Bxg3 {[%clk 0:00:32.1]} 31... Rxf3 {[%clk 0:01:26.5]} 32. Rxc7
{[%clk 0:00:32.6]} 32... b5 {[%clk 0:01:26.7]} 33. Rc8+ {[%clk 0:00:31]} 33...
Kh7 {[%clk 0:01:27.3]} 34. Bd3+ {[%clk 0:00:32.1]} 34... g6 {[%clk 0:01:28.2]}
35. c7 {[%clk 0:00:30]} 35... Rf7 {[%clk 0:01:25.4]} 36. Rh8+ {[%clk 0:00:25.5]}
36... Kxh8 {[%clk 0:01:25.4]} 37. c8=Q+ {[%clk 0:00:27.4]} 37... Kh7 {[%clk
0:01:26.1]} 38. Qe6 {[%clk 0:00:24.2]} 38... Rb7 {[%clk 0:01:23.6]} 39. Nd5
{[%clk 0:00:22]} 39... Rxd5 {[%clk 0:01:21.8]} 40. Qxd5 {[%clk 0:00:19]} 40...
Re7 {[%clk 0:01:20.5]} 41. Qd6 {[%clk 0:00:18.6]} 41... Rg7 {[%clk 0:01:21.3]}
42. Be5 {[%clk 0:00:18.8]} 42... a5 {[%clk 0:01:16]} 43. Bxg7 {[%clk 0:00:18.8]}
43... Kxg7 {[%clk 0:01:16.9]} 44. Qe7+ {[%clk 0:00:18.4]} 44... Kg8 {[%clk
0:01:17.9]} 45. Bxg6 {[%clk 0:00:19.7]} 45... axb4 {[%clk 0:01:19.1]} 46. Qf7+
{[%clk 0:00:21.6]} 46... Kh8 {[%clk 0:01:19.6]} 47. Qh7# {[%clk 0:00:23.5]} 1-0

[Event "*** Titled Tuesday Blitz"]
[Site "Chess.com"]
[Date "2019.10.01"]
[Round "5"]
[White "Siemba"]
[Black "Oleg_Papayan"]
[Result "1-0"]
[WhiteElo "2247"]
[BlackElo "2417"]
[TimeControl "180+2"]
[EndTime "14:11:30 PDT"]
[Termination "Siemba won on time"]

1. e4 {[%clk 0:03:01.9]} 1... Nf6 {[%clk 0:03:00.5]} 2. e5 {[%clk 0:03:00.8]}
2... Nd5 {[%clk 0:03:01.1]} 3. b3 {[%clk 0:02:56.9]} 3... g6 {[%clk 0:02:56.4]}
4. Bb2 {[%clk 0:02:45.6]} 4... Bg7 {[%clk 0:02:56.8]} 5. c4 {[%clk 0:02:37.8]}
5... Nb6 {[%clk 0:02:52.1]} 6. f4 {[%clk 0:02:39]} 6... d6 {[%clk 0:02:49]} 7.
Nf3 {[%clk 0:02:37.1]} 7... Bg4 {[%clk 0:02:46.3]} 8. Be2 {[%clk 0:02:27.4]}
8... Nc6 {[%clk 0:02:44.2]} 9. d4 {[%clk 0:02:26.6]} 9... d5 {[%clk 0:02:23.7]}
10. O-O {[%clk 0:02:12.7]} 10... e6 {[%clk 0:02:20]} 11. Nbd2 {[%clk 0:01:42.8]}
11... O-O {[%clk 0:01:50.8]} 12. h3 {[%clk 0:01:39.9]} 12... Bxf3 {[%clk
0:01:50.5]} 13. Nxf3 {[%clk 0:01:41.8]} 13... a5 {[%clk 0:01:34.3]} 14. g4
{[%clk 0:01:32.5]} 14... a4 {[%clk 0:01:34.7]} 15. f5 {[%clk 0:01:25.6]} 15...
exf5 {[%clk 0:01:16.8]} 16. gxf5 {[%clk 0:01:25.5]} 16... Bf6 {[%clk 0:00:42.7]}
17. exf6 {[%clk 0:01:07]} 17... gxf5 {[%clk 0:00:44.1]} 18. Ne5 {[%clk
0:00:40.9]} 18... Qxf6 {[%clk 0:00:40.1]} 19. Bd3 {[%clk 0:00:41.9]} 19... Ne7
{[%clk 0:00:23.5]} 20. Qh5 {[%clk 0:00:38.8]} 20... Kh8 {[%clk 0:00:13.9]} 21.
Kh1 {[%clk 0:00:30.6]} 21... Rg8 {[%clk 0:00:15.8]} 22. Nxf7+ {[%clk 0:00:16.7]}
22... Kg7 {[%clk 0:00:16.2]} 23. Rg1+ {[%clk 0:00:18.2]} 23... Ng6 {[%clk
0:00:16.3]} 24. Ne5 {[%clk 0:00:18.9]} 24... axb3 {[%clk 0:00:11.3]} 25. axb3
{[%clk 0:00:17]} 25... Rxa1 {[%clk 0:00:13.2]} 26. Bxa1 {[%clk 0:00:18.7]} 26...
Ra8 {[%clk 0:00:06.7]} 27. Bxf5 {[%clk 0:00:14.9]} 27... Rxa1 {[%clk 0:00:05.2]}
28. Rxa1 {[%clk 0:00:16.5]} 28... dxc4 {[%clk 0:00:06.6]} 29. Rg1 {[%clk
0:00:15]} 29... cxb3 {[%clk 0:00:05.3]} 30. Bxg6 {[%clk 0:00:16.2]} 1-0

[Event "*** Titled Tuesday Blitz"]
[Site "Chess.com"]
[Date "2019.10.01"]
[Round "5"]
[White "Grebeniuk-S"]
[Black "nitpicker"]
[Result "1-0"]
[WhiteElo "2483"]
[BlackElo "2264"]
[TimeControl "180+2"]
[EndTime "14:11:35 PDT"]
[Termination "Grebeniuk-S won on time"]

1. d4 {[%clk 0:02:55.9]} 1... Nf6 {[%clk 0:03:00]} 2. Nf3 {[%clk 0:02:54.5]}
2... b6 {[%clk 0:03:00.5]} 3. e3 {[%clk 0:02:55.5]} 3... e6 {[%clk 0:02:57.1]}
4. Nbd2 {[%clk 0:02:56.1]} 4... Bb7 {[%clk 0:02:57.2]} 5. Bd3 {[%clk 0:02:56.9]}
5... d6 {[%clk 0:02:55.6]} 6. O-O {[%clk 0:02:58.1]} 6... Nbd7 {[%clk
0:02:56.2]} 7. b3 {[%clk 0:02:59.5]} 7... g6 {[%clk 0:02:55.4]} 8. Bb2 {[%clk
0:03:00.9]} 8... Bg7 {[%clk 0:02:56]} 9. c4 {[%clk 0:03:02.3]} 9... O-O {[%clk
0:02:56.2]} 10. Rc1 {[%clk 0:03:03.3]} 10... c5 {[%clk 0:02:55.3]} 11. Qe2
{[%clk 0:02:57.5]} 11... Re8 {[%clk 0:02:50]} 12. Rfd1 {[%clk 0:02:58.2]} 12...
Qe7 {[%clk 0:02:48.4]} 13. Bb1 {[%clk 0:02:57.1]} 13... h5 {[%clk 0:02:39.7]}
14. h3 {[%clk 0:02:44.7]} 14... Nf8 {[%clk 0:02:38.4]} 15. e4 {[%clk 0:02:45.2]}
15... cxd4 {[%clk 0:02:26]} 16. Nxd4 {[%clk 0:02:45.6]} 16... a6 {[%clk
0:02:19.1]} 17. Nf1 {[%clk 0:02:45.9]} 17... N8d7 {[%clk 0:02:17.4]} 18. Ne3
{[%clk 0:02:46.8]} 18... Nxe4 {[%clk 0:02:10.7]} 19. Ba3 {[%clk 0:02:20.3]}
19... Red8 {[%clk 0:01:29.5]} 20. Qe1 {[%clk 0:01:44.7]} 20... Ndf6 {[%clk
0:01:29.9]} 21. f3 {[%clk 0:01:39]} 21... Nc5 {[%clk 0:01:29.9]} 22. Qg3 {[%clk
0:01:26.6]} 22... Bh6 {[%clk 0:01:27.4]} 23. Re1 {[%clk 0:01:27.3]} 23... e5
{[%clk 0:01:19.1]} 24. Ndf5 {[%clk 0:01:26.3]} 24... Qf8 {[%clk 0:01:15.3]} 25.
Nxh6+ {[%clk 0:01:18.9]} 25... Qxh6 {[%clk 0:01:16.2]} 26. Rcd1 {[%clk
0:01:20.5]} 26... Rd7 {[%clk 0:00:50.7]} 27. Bc1 {[%clk 0:01:19.2]} 27... Qg7
{[%clk 0:00:44.8]} 28. Bb2 {[%clk 0:01:00.8]} 28... Ne6 {[%clk 0:00:45]} 29. Rd2
{[%clk 0:00:57]} 29... Nf4 {[%clk 0:00:41.9]} 30. Red1 {[%clk 0:00:53.3]} 30...
Rad8 {[%clk 0:00:42.3]} 31. Qf2 {[%clk 0:00:45]} 31... b5 {[%clk 0:00:43.1]} 32.
Kh2 {[%clk 0:00:45.3]} 32... bxc4 {[%clk 0:00:40.7]} 33. Nxc4 {[%clk 0:00:46.1]}
33... Ne8 {[%clk 0:00:33.8]} 34. Nxe5 {[%clk 0:00:37.6]} 34... dxe5 {[%clk
0:00:26.1]} 35. Rxd7 {[%clk 0:00:38.3]} 35... Rxd7 {[%clk 0:00:27.5]} 36. Rxd7
{[%clk 0:00:39.8]} 36... Bc8 {[%clk 0:00:28.4]} 37. Rd8 {[%clk 0:00:38.9]} 1-0

[Event "*** Titled Tuesday Blitz"]
[Site "Chess.com"]
[Date "2019.10.01"]
[Round "5"]
[White "Grandmaster1369"]
[Black "DanielNaroditsky"]
[Result "0-1"]
[WhiteElo "2677"]
[BlackElo "3023"]
[TimeControl "180+2"]
[EndTime "14:11:36 PDT"]
[Termination "DanielNaroditsky won by resignation"]

1. e4 {[%clk 0:03:01.1]} 1... e5 {[%clk 0:03:00.5]} 2. Nc3 {[%clk 0:03:01.3]}
2... Nf6 {[%clk 0:03:01.3]} 3. Bc4 {[%clk 0:03:00.1]} 3... Bc5 {[%clk
0:02:59.1]} 4. d3 {[%clk 0:03:00.8]} 4... c6 {[%clk 0:03:00.6]} 5. Bb3 {[%clk
0:02:58.4]} 5... d6 {[%clk 0:02:46.5]} 6. Nf3 {[%clk 0:02:30.4]} 6... Bb6 {[%clk
0:02:39.2]} 7. h3 {[%clk 0:02:29.1]} 7... Be6 {[%clk 0:02:39.7]} 8. O-O {[%clk
0:02:25.1]} 8... h6 {[%clk 0:02:40.8]} 9. Be3 {[%clk 0:02:23.1]} 9... O-O {[%clk
0:02:40.9]} 10. Ne2 {[%clk 0:02:19.4]} 10... Nbd7 {[%clk 0:02:37.5]} 11. c3
{[%clk 0:02:17.2]} 11... d5 {[%clk 0:02:37.5]} 12. exd5 {[%clk 0:01:57.3]} 12...
Nxd5 {[%clk 0:02:31.5]} 13. Bxb6 {[%clk 0:01:56.6]} 13... axb6 {[%clk
0:02:32.4]} 14. Re1 {[%clk 0:01:52.6]} 14... Qf6 {[%clk 0:02:24.8]} 15. Ng3
{[%clk 0:01:42.1]} 15... Nf4 {[%clk 0:02:26]} 16. d4 {[%clk 0:01:33.1]} 16...
Bxb3 {[%clk 0:02:24.3]} 17. Qxb3 {[%clk 0:01:12.4]} 17... Nxh3+ {[%clk
0:02:25.5]} 18. gxh3 {[%clk 0:01:13.7]} 18... Qxf3 {[%clk 0:02:26.8]} 19. dxe5
{[%clk 0:01:15.5]} 19... Nc5 {[%clk 0:01:56.3]} 20. Qxb6 {[%clk 0:01:13.4]}
20... Nd3 {[%clk 0:01:53.1]} 21. Re2 {[%clk 0:01:05.5]} 21... Nf4 {[%clk
0:01:48.6]} 22. Kf1 {[%clk 0:01:03.7]} 22... Qg2+ {[%clk 0:01:35]} 23. Ke1
{[%clk 0:01:04.1]} 23... Rad8 {[%clk 0:01:12.5]} 24. Rd2 {[%clk 0:01:04.8]}
24... Qg1+ {[%clk 0:00:52]} 25. Nf1 {[%clk 0:01:05.2]} 25... Rde8 {[%clk
0:00:27.6]} 26. Qd4 {[%clk 0:00:48.7]} 26... Nxh3 {[%clk 0:00:20.9]} 27. Re2
{[%clk 0:00:25.4]} 27... Ng5 {[%clk 0:00:20.9]} 28. Re3 {[%clk 0:00:22]} 28...
f6 {[%clk 0:00:19.4]} 29. e6 {[%clk 0:00:19.8]} 29... Rxe6 {[%clk 0:00:19.2]}
30. Qc4 {[%clk 0:00:20.7]} 30... Re8 {[%clk 0:00:20.6]} 31. f4 {[%clk
0:00:18.1]} 31... Kh8 {[%clk 0:00:19.4]} 32. Rxe6 {[%clk 0:00:16.5]} 32... Rxe6+
{[%clk 0:00:21.3]} 33. Kd2 {[%clk 0:00:18]} 33... Qf2+ {[%clk 0:00:22.4]} 34.
Kd3 {[%clk 0:00:17.5]} 34... Qe2+ {[%clk 0:00:21.2]} 0-1

[Event "*** Titled Tuesday Blitz"]
[Site "Chess.com"]
[Date "2019.10.01"]
[Round "5"]
[White "patrisiii123"]
[Black "DeGrootteZ"]
[Result "1-0"]
[WhiteElo "2498"]
[BlackElo "2657"]
[TimeControl "180+2"]
[EndTime "14:11:37 PDT"]
[Termination "patrisiii123 won by resignation"]

1. e4 {[%clk 0:02:58.8]} 1... c5 {[%clk 0:03:01.3]} 2. Nf3 {[%clk 0:02:53.4]}
2... d6 {[%clk 0:03:02.7]} 3. d4 {[%clk 0:02:55]} 3... cxd4 {[%clk 0:03:04.6]}
4. Nxd4 {[%clk 0:02:55.2]} 4... Nf6 {[%clk 0:03:06.1]} 5. Nc3 {[%clk 0:02:55.6]}
5... a6 {[%clk 0:03:07.5]} 6. Be2 {[%clk 0:02:56.5]} 6... e5 {[%clk 0:03:08.6]}
7. Nb3 {[%clk 0:02:55.7]} 7... Be7 {[%clk 0:03:10]} 8. O-O {[%clk 0:02:56.5]}
8... O-O {[%clk 0:03:10.8]} 9. Be3 {[%clk 0:02:57]} 9... Be6 {[%clk 0:03:12.1]}
10. f3 {[%clk 0:02:51.5]} 10... Nbd7 {[%clk 0:03:09.8]} 11. Nd5 {[%clk
0:02:52.4]} 11... Bxd5 {[%clk 0:03:09.4]} 12. exd5 {[%clk 0:02:54.3]} 12... Ne8
{[%clk 0:03:09.9]} 13. c4 {[%clk 0:02:54.7]} 13... Bg5 {[%clk 0:03:10.8]} 14.
Bxg5 {[%clk 0:02:51.4]} 14... Qxg5 {[%clk 0:03:12.7]} 15. Qd2 {[%clk 0:02:52.2]}
15... Qxd2 {[%clk 0:03:12.1]} 16. Nxd2 {[%clk 0:02:54.1]} 16... f5 {[%clk
0:03:10.4]} 17. b4 {[%clk 0:02:54.4]} 17... Nc7 {[%clk 0:03:02.8]} 18. Bd3
{[%clk 0:02:48.4]} 18... b6 {[%clk 0:02:59.1]} 19. Rfe1 {[%clk 0:02:47.4]} 19...
g6 {[%clk 0:02:59.8]} 20. Nb3 {[%clk 0:02:46.6]} 20... Kg7 {[%clk 0:02:56.1]}
21. a4 {[%clk 0:02:46.2]} 21... a5 {[%clk 0:02:56]} 22. bxa5 {[%clk 0:02:46.6]}
22... bxa5 {[%clk 0:02:57.9]} 23. Rec1 {[%clk 0:02:43.6]} 23... Na6 {[%clk
0:02:56.1]} 24. Nxa5 {[%clk 0:02:41.9]} 24... Nac5 {[%clk 0:02:56.4]} 25. Nc6
{[%clk 0:02:30.2]} 25... Nxd3 {[%clk 0:02:55.9]} 26. Rc3 {[%clk 0:02:32.1]}
26... N7c5 {[%clk 0:02:48.3]} 27. a5 {[%clk 0:02:31.9]} 27... Ra6 {[%clk
0:02:44.3]} 28. Rb1 {[%clk 0:02:28.5]} 28... e4 {[%clk 0:02:36.9]} 29. Rb5
{[%clk 0:02:15.5]} 29... e3 {[%clk 0:02:32]} 30. Kf1 {[%clk 0:02:14.5]} 30...
Re8 {[%clk 0:02:29.5]} 31. Nd4 {[%clk 0:01:54.5]} 31... Re7 {[%clk 0:01:44.6]}
32. g3 {[%clk 0:01:54.3]} 32... f4 {[%clk 0:01:42.2]} 33. Ke2 {[%clk 0:01:53.6]}
33... fxg3 {[%clk 0:01:16.9]} 34. hxg3 {[%clk 0:01:55.5]} 34... Ne5 {[%clk
0:00:41.7]} 35. Rxe3 {[%clk 0:01:46.8]} 35... Rea7 {[%clk 0:00:43]} 36. Rxe5
{[%clk 0:01:38.2]} 36... dxe5 {[%clk 0:00:41.7]} 37. Nc6 {[%clk 0:01:39.5]}
37... Ne6 {[%clk 0:00:18.3]} 38. Nxa7 {[%clk 0:01:03.7]} 38... Nd4+ {[%clk
0:00:19.3]} 39. Kd3 {[%clk 0:01:03.7]} 39... Nxb5 {[%clk 0:00:20.6]} 40. Nxb5
{[%clk 0:01:03.4]} 40... Rxa5 {[%clk 0:00:22.2]} 41. Ke4 {[%clk 0:00:59.7]}
41... Kf6 {[%clk 0:00:23.5]} 42. Nd6 {[%clk 0:00:57.1]} 42... Rc5 {[%clk
0:00:22.2]} 43. Kd3 {[%clk 0:00:48]} 43... h5 {[%clk 0:00:23.4]} 44. Ne4+ {[%clk
0:00:47.9]} 1-0

[Event "*** Titled Tuesday Blitz"]
[Site "Chess.com"]
[Date "2019.10.01"]
[Round "5"]
[White "oskariot"]
[Black "dopolian"]
[Result "0-1"]
[WhiteElo "2686"]
[BlackElo "2348"]
[TimeControl "180+2"]
[EndTime "14:11:43 PDT"]
[Termination "dopolian won by checkmate"]

1. e4 {[%clk 0:03:01.9]} 1... e5 {[%clk 0:03:00.4]} 2. Nf3 {[%clk 0:03:02.7]}
2... Nc6 {[%clk 0:03:01.9]} 3. Nc3 {[%clk 0:03:03.6]} 3... Nf6 {[%clk 0:03:03]}
4. a3 {[%clk 0:03:05.2]} 4... d6 {[%clk 0:02:59.8]} 5. d4 {[%clk 0:03:03.4]}
5... exd4 {[%clk 0:02:59.9]} 6. Nxd4 {[%clk 0:03:05.3]} 6... g6 {[%clk
0:02:59.6]} 7. Bc4 {[%clk 0:03:00.2]} 7... Bg7 {[%clk 0:02:57.4]} 8. O-O {[%clk
0:03:01.2]} 8... O-O {[%clk 0:02:58.3]} 9. Nxc6 {[%clk 0:02:59.4]} 9... bxc6
{[%clk 0:02:59.6]} 10. Re1 {[%clk 0:03:01.3]} 10... Re8 {[%clk 0:02:57.9]} 11.
Rb1 {[%clk 0:02:56.3]} 11... Nd7 {[%clk 0:02:54.9]} 12. Be3 {[%clk 0:02:41.3]}
12... c5 {[%clk 0:02:51.3]} 13. Bxf7+ {[%clk 0:02:37]} 13... Kxf7 {[%clk
0:02:43.3]} 14. Qd5+ {[%clk 0:02:36.9]} 14... Kf8 {[%clk 0:02:29.9]} 15. Qxa8
{[%clk 0:02:37.2]} 15... Nb6 {[%clk 0:02:28.4]} 16. Qxa7 {[%clk 0:02:34]} 16...
c6 {[%clk 0:01:48.8]} 17. Rbd1 {[%clk 0:02:22.6]} 17... Nc4 {[%clk 0:01:29.8]}
18. Bxc5 {[%clk 0:02:20]} 18... Re7 {[%clk 0:00:45.8]} 19. Qb8 {[%clk
0:02:10.6]} 19... Rb7 {[%clk 0:00:37.1]} 20. Bxd6+ {[%clk 0:02:03]} 20... Kg8
{[%clk 0:00:34]} 21. Be7 {[%clk 0:01:41.2]} 21... Qe8 {[%clk 0:00:22.5]} 22.
Qxc8 {[%clk 0:01:14.8]} 22... Qxc8 {[%clk 0:00:21.6]} 23. Rd8+ {[%clk
0:01:16.7]} 23... Qxd8 {[%clk 0:00:22.5]} 24. Bxd8 {[%clk 0:01:18.6]} 24... Rxb2
{[%clk 0:00:19.6]} 25. Na4 {[%clk 0:01:10.3]} 25... Rxc2 {[%clk 0:00:20.8]} 26.
Bh4 {[%clk 0:00:48.3]} 26... Nxa3 {[%clk 0:00:21.3]} 27. h3 {[%clk 0:00:43.5]}
27... Nc4 {[%clk 0:00:21.4]} 28. Nc5 {[%clk 0:00:41.3]} 28... Kf7 {[%clk
0:00:17]} 29. e5 {[%clk 0:00:40.7]} 29... Nxe5 {[%clk 0:00:12.7]} 30. Ne4 {[%clk
0:00:41.7]} 30... h6 {[%clk 0:00:11.7]} 31. Bg3 {[%clk 0:00:41.7]} 31... Nd3
{[%clk 0:00:10.9]} 32. Nd6+ {[%clk 0:00:42.4]} 32... Kg8 {[%clk 0:00:12]} 33.
Re8+ {[%clk 0:00:42.7]} 33... Kh7 {[%clk 0:00:13.4]} 34. Re7 {[%clk 0:00:44]}
34... Kg8 {[%clk 0:00:11.5]} 35. Ne8 {[%clk 0:00:33.9]} 35... Bd4 {[%clk
0:00:12.3]} 36. Rd7 {[%clk 0:00:35.1]} 36... c5 {[%clk 0:00:11.7]} 37. Nc7
{[%clk 0:00:29.5]} 37... Rc1+ {[%clk 0:00:12.2]} 38. Kh2 {[%clk 0:00:30.6]}
38... Nxf2 {[%clk 0:00:12.5]} 39. Ne6 {[%clk 0:00:30.7]} 39... Rh1# {[%clk
0:00:12.6]} 0-1